fUSD/lending_fUSD_20251017
["ID","MTS","AMOUNT","RATE_DAILY","PERIOD"]
[391685999,1760728243994,-500.0,0.00033041,2]
[391686000,1760728244004,-361.0,0.00033091,2]
[391686001,1760728244014,-1962.0,0.00033214,2]
[391686002,1760728244023,-361.0,0.00033279,2]
[391686003,1760728244032,-361.0,0.00033283,2]
[391686004,1760728244043,-9413.70107995,0.00033529,2]
[391686005,1760728244053,-1962.0,0.0003354,2]
[391686006,1760728244062,-153.0,0.000337,120]
[391686007,1760728244072,-151.0,0.000339,120]
[391686008,1760728244081,-150.0,0.000341,60]
[391686009,1760728244091,-17462.9428769,0.00034124,2]
[391686010,1760728244101,-9413.70107995,0.00034124,2]
[391686011,1760728244110,-150.0,0.00034134,2]
[391686012,1760728244119,-150.0,0.00034134,2]
[391686013,1760728244129,-150.0,0.00034134,2]
[391686014,1760728244138,-236.752,0.00034134,2]
[391686015,1760728244147,-210.336,0.00034134,2]
[391686016,1760728244157,-150.0,0.00034134,2]
[391686017,1760728244167,-150.0,0.00034134,2]
[391686018,1760728244176,-150.0,0.00034134,2]
[391686019,1760728244186,-208.312,0.00034134,2]
[391686020,1760728244196,-208.935,0.00034134,2]
[391686021,1760728244206,-250.0,0.00034134,2]
[391686022,1760728244215,-217.321,0.00034134,2]
[391686023,1760728244225,-749.0,0.00034134,2]
[391686024,1760728244235,-3408.0,0.00034134,2]
[391686025,1760728244244,-2050.0,0.00034134,2]
[391686026,1760728244254,-1267.0,0.00034134,2]
[391686027,1760728244263,-1310.0,0.00034134,2]
[391686028,1760728244273,-588.532,0.00034134,2]
[391686029,1760728244283,-686.349,0.00034134,2]
[391686030,1760728244293,-1589.0,0.00034134,2]
[391686031,1760728244303,-822.0,0.00034134,2]
[391686032,1760728244312,-3201.47638591,0.00034218,2]
[391686033,1760728244322,-153.0,0.000344,120]
[391686034,1760728244333,-153.0,0.00034832,2]
[391686035,1760728244342,-153.0,0.00034832,2]
[391686036,1760728244352,-153.0,0.00034832,2]
[391686037,1760728244361,-153.0,0.00034832,2]
[391686038,1760728244371,-153.0,0.00034832,2]
[391686039,1760728244380,-722.71426977,0.00034849,120]
[391686040,1760728244390,-9413.70107995,0.00034932,2]
[391686041,1760728244399,-1600.0,0.00034942,120]
[391686042,1760728244409,-184.33,0.00035,30]
[391686043,1760728244419,-184.65,0.00035,2]
[391686044,1760728244429,-153.0,0.000351,120]
[391686045,1760728244438,-153.51693265,0.00035176,15]
[391686046,1760728244448,-151.0,0.000353,120]
[391686047,1760728244458,-299.99,0.00035455,30]
[391686048,1760728244467,-150.99,0.00035455,30]
[391686049,1760728244477,-3865.83,0.00035455,2]
[391686050,1760728244487,-150.99,0.00035455,2]
[391686051,1760728244496,-999.99,0.00035455,2]
[391686052,1760728244506,-4554.8,0.00035616,5]
[391686053,1760728244515,-153.0,0.000357,120]
[391686054,1760728244524,-3356.0,0.00035865,2]
[391686055,1760728244537,-2813.748,0.00035865,2]
[391686056,1760728244546,-9413.70107995,0.00036345,2]
[391686057,1760728244556,-3201.47638591,0.00036355,2]
[391686058,1760728244567,-153.0,0.000364,120]
[391686059,1760728244577,-151.0,0.000367,120]
[391686060,1760728244586,-1290.8915309,0.00036853,4]
[391686061,1760728244596,-17462.9428769,0.0003699,3]
[391686062,1760728244605,-500.0,0.00036999,2]
[391686063,1760728244615,-1000.0,0.00037,2]
[391686064,1760728244624,-1000.0,0.00037,2]
[391686065,1760728244634,-1000.0,0.00037,2]
[391686066,1760728244643,-1000.0,0.00037,2]
[391686067,1760728244653,-1000.0,0.00037,2]
[391686068,1760728244662,-1000.0,0.00037,2]
[391686069,1760728244672,-1000.0,0.00037,2]
[391686070,1760728244682,-1000.0,0.00037,2]
[391686071,1760728244691,-1000.0,0.00037,2]
[391686072,1760728244701,-1000.0,0.00037,2]
[391686073,1760728244711,-153.0,0.000371,120]
[391686074,1760728244721,-184.33,0.000371,30]
[391686075,1760728244731,-184.65,0.000371,2]
[391686076,1760728244740,-9413.70107995,0.00037124,3]
[391686077,1760728244750,-150.0,0.00037134,2]
[391686078,1760728244760,-150.0,0.00037134,2]
[391686079,1760728244770,-150.0,0.00037134,2]
[391686080,1760728244781,-150.0,0.00037134,2]
[391686081,1760728244790,-150.0,0.00037134,2]
[391686082,1760728244800,-150.0,0.00037134,2]
[391686083,1760728244810,-150.0,0.00037134,2]
[391686084,1760728244820,-150.0,0.00037134,2]
[391686085,1760728244830,-3408.0,0.00037134,2]
[391686086,1760728244840,-2050.0,0.00037134,2]
[391686087,1760728244850,-1267.0,0.00037134,2]
[391686088,1760728244860,-1310.0,0.00037134,2]
[391686089,1760728244870,-571.0,0.00037134,2]
[391686090,1760728244880,-605.0,0.00037134,2]
[391686091,1760728244890,-1589.0,0.00037134,2]
[391686092,1760728244899,-816.0,0.00037134,2]
[391686093,1760728244912,-290.62217228,0.000372,120]
[391686094,1760728244922,-546.55,0.00037751,2]
[391686095,1760728244931,-153.0,0.000378,120]
[391686096,1760728244941,-1600.0,0.00038119,120]
[391686097,1760728244952,-151.0,0.000382,120]
[391686098,1760728244962,-17462.9428769,0.00038346,3]
[391686099,1760728244972,-9413.70107995,0.00038346,3]
[391686100,1760728244982,-5693.5,0.00038356,6]
[391686101,1760728244992,-500.0,0.00038356,120]
[391686102,1760728245002,-153.0,0.000384,120]
[391686103,1760728245012,-151.91166681,0.00038473,2]
[391686104,1760728245022,-3201.47638591,0.00038491,2]
[391686105,1760728245032,-9413.70107995,0.00038507,3]
[391686106,1760728245042,-546.7,0.00038517,2]
[391686107,1760728245052,-300.0,0.00038517,2]
[391686108,1760728245061,-413.65,0.00038517,2]
[391686109,1760728245071,-374.54,0.00038517,2]
[391686110,1760728245081,-1199.37,0.00038517,2]
[391686111,1760728245090,-312.72,0.00038517,2]
[391686112,1760728245100,-695.27,0.00038517,2]
[391686113,1760728245110,-1520.59,0.00038517,2]
[391686114,1760728245119,-168.24,0.00038517,2]
[391686115,1760728245129,-175.82,0.00038517,2]
[391686116,1760728245139,-150.0,0.00038517,2]
[391686117,1760728245149,-150.0,0.00038517,2]
[391686118,1760728245158,-150.0,0.00038517,2]
[391686119,1760728245168,-150.0,0.00038517,2]
[391686120,1760728245177,-2398.74,0.00038517,2]
[391686121,1760728245187,-150.0,0.00038517,2]
[391686122,1760728245196,-150.0,0.00038517,2]
[391686123,1760728245206,-1199.37,0.00038517,2]
[391686124,1760728245216,-316.22,0.00038517,2]
[391686125,1760728245226,-301.04,0.00038517,2]
[391686126,1760728245235,-150.0,0.00038517,2]
[391686127,1760728245245,-150.0,0.00038517,2]
[391686128,1760728245254,-150.0,0.00038517,2]
[391686129,1760728245264,-1199.37,0.00038517,2]
[391686130,1760728245273,-536.82,0.00038517,2]
[391686132,1760728245283,-334.87,0.00038517,2]
[391686133,1760728245292,-150.66,0.00038517,2]
[391686134,1760728245302,-827.3,0.00038517,2]
[391686135,1760728245311,-150.0,0.00038517,2]
[391686136,1760728245321,-413.65,0.00038517,2]
[391686137,1760728245331,-336.48,0.00038517,2]
[391686138,1760728245341,-1199.37,0.00038517,2]
[391686139,1760728245350,-827.3,0.00038517,2]
[391686140,1760728245359,-168.24,0.00038517,2]
[391686141,1760728245369,-2398.74,0.00038517,2]
[391686142,1760728245379,-168.24,0.00038517,2]
[391686143,1760728245388,-827.3,0.00038517,2]
[391686144,1760728245398,-168.24,0.00038517,2]
[391686145,1760728245407,-546.7,0.00038517,2]
[391686146,1760728245417,-150.0,0.00038517,2]
[391686147,1760728245427,-1199.37,0.00038517,2]
[391686148,1760728245436,-546.7,0.00038517,2]
[391686149,1760728245447,-150.0,0.00038517,2]
[391686150,1760728245457,-695.27,0.00038517,2]
[391686151,1760728245466,-546.7,0.00038521,2]
[391686152,1760728245476,-546.7,0.00038521,2]
[391686153,1760728245485,-546.7,0.00038521,2]
[391686154,1760728245495,-150.0,0.00038521,2]
[391686155,1760728245504,-695.27,0.00038521,2]
[391686156,1760728245514,-1199.37,0.00038521,2]
[391686157,1760728245524,-413.65,0.00038521,2]
[391686158,1760728245533,-1199.37,0.00038521,2]
[391686159,1760728245543,-695.27,0.00038521,2]
[391686160,1760728245552,-1199.37,0.00038521,2]
[391686161,1760728245562,-1199.37,0.00038521,2]
[391686162,1760728245572,-546.7,0.00038521,2]
[391686163,1760728245582,-176.05,0.00038521,2]
[391686164,1760728245592,-1199.37,0.00038521,2]
[391686165,1760728245601,-327.48,0.00038521,2]
[391686166,1760728245611,-150.0,0.00038521,2]
[391686167,1760728245621,-163.68,0.00038521,2]
[391686168,1760728245631,-150.0,0.00038521,2]
[391686169,1760728245641,-150.0,0.00038521,2]
[391686170,1760728245650,-1093.4,0.00038521,2]
[391686171,1760728245660,-500.0,0.00038685,2]
[391686172,1760728245670,-3356.0,0.00038865,2]
[391686173,1760728245680,-153.0,0.000391,120]
[391686174,1760728245690,-9413.70107995,0.00039179,3]
[391686175,1760728245699,-500.0,0.00039189,17]
[391686176,1760728245709,-184.33,0.000392,30]
[391686177,1760728245719,-184.65,0.000392,2]
[391686178,1760728245729,-153.51693265,0.00039253,15]
[391686179,1760728245739,-17462.9428769,0.0003949,3]
[391686180,1760728245748,-2000.0,0.000395,2]
[391686181,1760728245760,-151.0,0.000396,120]
[391686182,1760728245770,-202.585796,0.00039726,7]
[391686183,1760728245780,-188.9532752,0.00039779,2]
[391686184,1760728245791,-151.0,0.00039786,14]
[391686185,1760728245801,-500.0,0.00039788,2]
[391686186,1760728245811,-87314.7143845,0.00039789,3]
[391686187,1760728245821,-94137.0107995,0.00039789,3]
[391686188,1760728245831,-153.0,0.00039792,30]
[391686189,1760728245840,-153.0,0.00039792,30]
[391686190,1760728245851,-153.0,0.00039792,30]
[391686191,1760728245861,-153.0,0.00039792,30]
[391686192,1760728245871,-153.0,0.00039792,30]
[391686193,1760728246023,-153.0,0.00039792,30]
[391686196,1760728246037,-153.0,0.00039792,30]
[391686198,1760728246045,-153.0,0.00039792,30]
[391686200,1760728246053,-153.0,0.00039792,30]
[391686202,1760728246061,-153.0,0.00039792,30]
[391686204,1760728246068,-153.0,0.00039792,30]
[391686205,1760728246076,-153.0,0.00039792,30]
[391686207,1760728246083,-153.0,0.00039792,30]
[391686208,1760728246089,-153.0,0.00039792,30]
[391686209,1760728246096,-153.0,0.00039792,30]
[391686210,1760728246102,-153.0,0.00039792,30]
[391686211,1760728246109,-153.0,0.00039792,30]
[391686212,1760728246117,-153.0,0.00039792,30]
[391686213,1760728246125,-153.0,0.00039792,30]
[391686214,1760728246133,-153.0,0.00039792,30]
[391686215,1760728246140,-153.0,0.00039792,30]
[391686216,1760728246146,-500.0,0.00039798,17]
[391686217,1760728246152,-999.0,0.00039798,120]
[391686218,1760728246159,-500.0,0.00039798,2]
[391686219,1760728246165,-106237.1977376,0.00039799,2]
[391686220,1760728246316,-83050.5109624,0.00039799,2]
[391686221,1760728246323,-1000.0,0.00039799,2]
[391686222,1760728246329,-153.0,0.000398,120]
[391686223,1760728246337,-2400.0,0.000399,14]
[391686224,1760728246344,-500.0,0.00039999,31]
[391686225,1760728246351,-500.0,0.00039999,31]
[391686226,1760728246358,-170.53542418,0.00039999,31]
[391686227,1760728246365,-600.5146235,0.00039999,31]
[391686228,1760728246372,-388.00820748,0.00039999,31]
[391686229,1760728246378,-418.93506045,0.00039999,31]
[391686230,1760728246384,-500.0,0.00039999,31]
[391686231,1760728246392,-500.0,0.00039999,31]
[391686232,1760728246399,-576.67115634,0.00039999,31]
[391686233,1760728246406,-292.5998,0.0004,120]
[391686234,1760728246413,-250.19,0.0004,120]
[391686235,1760728246419,-218.89,0.0004,30]
[391686236,1760728246426,-2587.0,0.0004,10]
[391686237,1760728246433,-151.91166681,0.00040044,2]
[391686238,1760728246440,-17462.9428769,0.00040124,3]
[391686239,1760728246448,-9413.70107995,0.00040124,3]
[391686240,1760728246455,-150.0,0.00040134,2]
[391686241,1760728246463,-372.329,0.00040134,2]
[391686242,1760728246471,-2050.0,0.00040134,2]
[391686243,1760728246481,-1267.0,0.00040134,2]
[391686244,1760728246490,-1310.0,0.00040134,2]
[391686245,1760728246499,-571.0,0.00040134,2]
[391686246,1760728246509,-605.0,0.00040134,2]
[391686247,1760728246519,-1589.0,0.00040134,2]
[391686248,1760728246528,-816.0,0.00040134,2]
[391686249,1760728246537,-150.0,0.00040488,7]
[391686250,1760728246546,-150.0,0.00040488,7]
[391686251,1760728246555,-150.0,0.00040488,7]
[391686252,1760728246564,-150.0,0.00040488,7]
[391686253,1760728246573,-150.0,0.00040488,7]
[391686254,1760728246583,-150.0,0.00040488,7]
[391686255,1760728246592,-168.31985426,0.00040488,7]
[391686256,1760728246601,-150.0,0.00040488,7]
[391686257,1760728246610,-150.0,0.00040488,7]
[391686258,1760728246620,-150.0,0.00040488,7]
[391686259,1760728246629,-150.0,0.00040488,7]
[391686260,1760728246639,-150.0,0.00040488,7]
[391686261,1760728246648,-150.0,0.00040488,7]
[391686262,1760728246657,-150.0,0.00040488,7]
[391686263,1760728246667,-150.0,0.00040488,7]
[391686264,1760728246676,-150.0,0.00040488,7]
[391686265,1760728246685,-252.2175388,0.00040488,7]
[391686266,1760728246694,-150.0,0.00040488,7]
[391686267,1760728246703,-153.0,0.000405,120]
[391686268,1760728246713,-168.31985426,0.00040533,7]
[391686269,1760728246722,-150.0,0.00040569,7]
[391686270,1760728246731,-168.31985426,0.00040579,7]
[391686271,1760728246740,-150.0,0.00040592,7]
[391686272,1760728246750,-184.33,0.000406,30]
[391686273,1760728246759,-184.65,0.000406,2]
[391686274,1760728246768,-685.483516,0.00040607,120]
[391686275,1760728246778,-9413.70107995,0.00040617,3]
[391686276,1760728246787,-150.0,0.00040624,7]
[391686277,1760728246796,-168.31985426,0.00040624,7]
[391686278,1760728246806,-3201.47638591,0.00040627,15]
[391686279,1760728246815,-150.0,0.00040651,7]
[391686280,1760728246825,-150.0,0.00040654,7]
[391686281,1760728246834,-150.0,0.00040661,7]
[391686282,1760728246844,-168.31985426,0.00040669,7]
[391686283,1760728246853,-150.0,0.00040697,7]
[391686284,1760728246862,-150.0,0.00040702,7]
[391686285,1760728246872,-168.31985426,0.00040715,7]
[391686286,1760728246882,-150.0,0.00040733,7]
[391686287,1760728246892,-150.0,0.0004076,7]
[391686288,1760728246901,-168.31985426,0.0004076,7]
[391686289,1760728246913,-200.0,0.000408,20]
[391686290,1760728246923,-150.0,0.00040802,7]
[391686291,1760728246933,-168.31985426,0.00040806,7]
[391686292,1760728246942,-150.0,0.00040809,7]
[391686293,1760728246952,-150.0,0.00040815,7]
[391686294,1760728246962,-150.0,0.00040821,7]
[391686295,1760728246971,-150.0,0.00040834,7]
[391686296,1760728246980,-168.31985426,0.00040851,7]
[391686297,1760728246991,-17462.9428769,0.0004089,3]
[391686298,1760728247000,-9413.70107995,0.0004089,3]
[391686299,1760728247009,-999.0,0.00040894,120]
[391686300,1760728247019,-150.0,0.00040897,7]
[391686301,1760728247028,-150.0,0.00040897,7]
[391686302,1760728247038,-168.31985426,0.00040897,7]
[391686303,1760728247047,-150.0,0.00040897,7]
[391686304,1760728247057,-9943.4627,0.000409,2]
[391686305,1760728247066,-3700.0,0.000409,14]
[391686306,1760728247076,-150.0,0.00040906,7]
[391686307,1760728247085,-150.0,0.00040916,7]
[391686308,1760728247095,-168.31985426,0.00040942,7]
[391686309,1760728247106,-400.0,0.0004097,3]
[391686310,1760728247115,-150.0,0.00040978,7]
[391686311,1760728247124,-168.31985426,0.00040988,7]
[391686312,1760728247134,-150.0,0.00040988,7]
[391686313,1760728247147,-150.0,0.00040988,7]
[391686314,1760728247156,-150.0,0.00041007,7]
[391686315,1760728247166,-150.0,0.00041011,7]
[391686316,1760728247175,-150.0,0.00041033,7]
[391686317,1760728247185,-168.31985426,0.00041033,7]
[391686318,1760728247194,-150.0,0.0004105,7]
[391686319,1760728247203,-150.0,0.0004106,7]
[391686320,1760728247213,-168.31985426,0.00041078,7]
[391686321,1760728247222,-17462.9428769,0.00041085,3]
[391686322,1760728247232,-18827.4021599,0.00041085,3]
[391686323,1760728247241,-295.43107867,0.00041094,17]
[391686324,1760728247251,-1000.0,0.00041095,30]
[391686325,1760728247260,-629.80420794,0.00041095,30]
[391686326,1760728247270,-1449.04,0.00041095,120]
[391686327,1760728247279,-1449.04,0.00041095,120]
[391686328,1760728247288,-1449.04,0.00041095,120]
[391686329,1760728247297,-1449.04,0.00041095,120]
[391686330,1760728247307,-1449.04,0.00041095,120]
[391686331,1760728247316,-1449.04,0.00041095,120]
[391686332,1760728247326,-1449.04,0.00041095,120]
[391686333,1760728247337,-1449.04,0.00041095,120]
[391686334,1760728247346,-1449.04,0.00041095,120]
[391686335,1760728247356,-1449.04,0.00041095,120]
[391686336,1760728247365,-1449.04,0.00041095,120]
[391686337,1760728247374,-1449.04,0.00041095,120]
[391686338,1760728247383,-1449.04,0.00041095,120]
[391686339,1760728247393,-1449.04,0.00041095,120]
[391686340,1760728247405,-1449.04,0.00041095,120]
[391686341,1760728247415,-1449.04,0.00041095,120]
[391686342,1760728247424,-1449.04,0.00041095,120]
[391686343,1760728247433,-1449.04,0.00041095,120]
[391686344,1760728247443,-1449.04,0.00041095,120]
[391686345,1760728247452,-1449.04,0.00041095,120]
[391686346,1760728247461,-1449.04,0.00041095,120]
[391686347,1760728247470,-1449.04,0.00041095,120]
[391686348,1760728247479,-1449.04,0.00041095,120]
[391686349,1760728247488,-1449.12787597,0.00041095,120]
[391686350,1760728247498,-6832.2,0.00041095,7]
[391686351,1760728247508,-151.0,0.000411,120]
[391686352,1760728247517,-1200.0,0.000411,2]
[391686353,1760728247527,-430.0,0.000411,2]
[391686354,1760728247536,-153.0,0.000411,120]
[391686355,1760728247546,-150.0,0.00041115,30]
[391686356,1760728247555,-168.31985426,0.00041124,30]
[391686357,1760728247564,-150.0,0.0004113,30]
[391686358,1760728247574,-150.0,0.0004113,30]
[391686359,1760728247586,-150.0,0.00041142,30]
[391686360,1760728247595,-150.0,0.00041154,30]
[391686361,1760728247604,-150.0,0.00041169,30]
[391686362,1760728247614,-168.31985426,0.00041169,30]
[391686363,1760728247624,-150.0,0.0004118,30]
[391686364,1760728247633,-168.31985426,0.00041215,30]
[391686365,1760728247642,-150.0,0.0004122,30]
[391686366,1760728247652,-150.0,0.00041224,30]
[391686367,1760728247661,-168.31985426,0.0004126,30]
[391686368,1760728247671,-150.0,0.00041306,30]
[391686369,1760728247680,-150.0,0.00041306,30]
[391686370,1760728247689,-168.31985426,0.00041306,30]
[391686371,1760728247699,-150.0,0.00041306,30]
[391686372,1760728247710,-150.0,0.00041321,30]
[391686373,1760728247719,-150.0,0.00041325,30]
[391686374,1760728247728,-150.0,0.00041345,30]
[391686375,1760728247737,-168.31985426,0.00041351,30]
[391686376,1760728247747,-150.0,0.00041353,30]
[391686377,1760728247756,-150.0,0.00041387,30]
[391686378,1760728247766,-168.31985426,0.00041396,30]
[391686379,1760728247775,-1000.0,0.000414,7]
[391686380,1760728247785,-150.0,0.00041429,30]
[391686381,1760728247795,-34925.8857538,0.00041434,3]
[391686382,1760728247805,-37654.8043198,0.00041434,3]
[391686383,1760728247815,-150.0,0.00041442,30]
[391686384,1760728247825,-168.31985426,0.00041442,30]
[391686385,1760728247836,-70170.679,0.00041444,7]
[391686386,1760728247846,-150.0,0.00041452,30]
[391686387,1760728247856,-150.0,0.00041469,30]
[391686388,1760728247865,-168.31985426,0.00041487,30]
[391686389,1760728247875,-150.0,0.00041487,30]
[391686390,1760728247885,-150.0,0.00041487,30]
[391686391,1760728247894,-150.0,0.00041526,30]
[391686392,1760728247904,-168.31985426,0.00041533,30]
[391686393,1760728247916,-150.0,0.00041534,30]
[391686394,1760728247925,-150.0,0.00041551,30]
[391686395,1760728247935,-150.0,0.00041559,30]
[391686396,1760728247944,-150.0,0.00041578,30]
[391686397,1760728247954,-168.31985426,0.00041578,30]
[391686398,1760728247964,-150.0,0.00041612,30]
[391686399,1760728247975,-150.0,0.00041612,30]
[391686400,1760728247985,-150.0,0.00041612,30]
[391686401,1760728247995,-151.91166681,0.00041615,4]
[391686402,1760728248004,-168.31985426,0.00041624,30]
[391686403,1760728248014,-150.0,0.00041633,30]
[391686404,1760728248024,-150.0,0.00041638,30]
[391686405,1760728248034,-150.0,0.00041654,30]
[391686406,1760728248044,-168.31985426,0.00041669,30]
[391686407,1760728248054,-150.0,0.00041699,30]
[391686408,1760728248063,-150.0,0.00041715,30]
[391686409,1760728248073,-150.0,0.00041715,30]
[391686410,1760728248083,-168.31985426,0.00041715,30]
[391686411,1760728248092,-150.0,0.00041715,30]
[391686412,1760728248102,-150.0,0.00041743,30]
[391686413,1760728248111,-168.31985426,0.0004176,30]
[391686414,1760728248120,-150.0,0.00041773,30]
[391686415,1760728248130,-150.0,0.00041773,30]
[391686416,1760728248140,-150.0,0.00041796,30]
[391686417,1760728248187,-153.0,0.000418,120]
[391686418,1760728248196,-168.31985426,0.00041805,30]
[391686419,1760728248205,-150.0,0.00041821,30]
[391686420,1760728248215,-150.0,0.00041848,30]
[391686421,1760728248224,-150.0,0.00041851,30]
[391686422,1760728248233,-168.31985426,0.00041851,30]
[391686423,1760728248242,-3356.0,0.00041865,2]
[391686424,1760728248252,-2444.5411,0.00041867,10]
[391686425,1760728248263,-150.0,0.00041872,30]
[391686426,1760728248272,-150.0,0.00041878,30]
[391686427,1760728248281,-168.31985426,0.00041896,30]
[391686428,1760728248290,-200.0,0.00041931,120]
[391686429,1760728248299,-168.31985426,0.00041942,30]
[391686430,1760728248309,-9413.70107995,0.00041943,3]
[391686431,1760728248318,-828.866355,0.00041949,2]
[391686432,1760728248332,-150.0,0.00041952,30]
[391686433,1760728248341,-150.0,0.0004196,30]
[391686434,1760728248350,-150.0,0.00041987,30]
[391686435,1760728248359,-168.31985426,0.00041987,30]
[391686436,1760728248368,-150.0,0.00041987,30]
[391686437,1760728248377,-150.0,0.00041987,30]
[391686438,1760728248387,-150.0,0.00041987,30]
[391686439,1760728248396,-150.0,0.00041987,30]
[391686440,1760728248405,-999.0,0.0004199,120]
[391686441,1760728248415,-1293.0,0.00042,10]
[391686442,1760728248424,-168.31985426,0.00042033,30]
[391686443,1760728248433,-150.0,0.00042042,30]
[391686444,1760728248442,-150.0,0.00042045,30]
[391686445,1760728248451,-150.0,0.00042057,30]
[391686446,1760728248460,-168.31985426,0.00042078,30]
[391686447,1760728248470,-150.0,0.00042094,30]
[391686448,1760728248479,-150.0,0.00042124,30]
[391686449,1760728248489,-150.0,0.00042124,30]
[391686450,1760728248498,-168.31985426,0.00042124,30]
[391686451,1760728248507,-150.0,0.00042124,30]
[391686452,1760728248517,-150.0,0.00042154,30]
[391686453,1760728248527,-150.0,0.00042162,30]
[391686454,1760728248537,-168.31985426,0.00042169,30]
[391686455,1760728248545,-150.0,0.00042175,30]
[391686456,1760728248555,-150.0,0.00042201,30]
[391686457,1760728248565,-150.0,0.00042205,30]
[391686458,1760728248574,-168.31985426,0.00042214,30]
[391686459,1760728248583,-150.0,0.00042218,30]
[391686460,1760728248592,-150.0,0.0004226,30]
[391686461,1760728248601,-168.31985426,0.0004226,30]
[391686462,1760728248610,-150.0,0.00042266,30]
[391686463,1760728248619,-150.0,0.00042287,30]
[391686464,1760728248628,-168.31985426,0.00042305,30]
[391686465,1760728248637,-150.0,0.0004232,30]
[391686466,1760728248647,-17462.9428769,0.00042341,3]
[391686467,1760728248655,-168.31985426,0.00042351,30]
[391686468,1760728248664,-150.0,0.00042369,30]
[391686469,1760728248673,-150.0,0.00042371,30]
[391686470,1760728248683,-828.866355,0.00042371,2]
[391686471,1760728248692,-150.0,0.00042391,30]
[391686472,1760728248701,-150.0,0.00042396,30]
[391686473,1760728248710,-168.31985426,0.00042396,30]
[391686474,1760728248720,-500.0,0.00042411,2]
[391686475,1760728248729,-150.0,0.00042416,30]
[391686476,1760728248738,-150.0,0.00042416,30]
[391686477,1760728248747,-168.31985426,0.00042442,30]
[391686478,1760728248757,-150.0,0.00042451,30]
[391686479,1760728248766,-150.0,0.00042475,30]
[391686480,1760728248775,-168.31985426,0.00042487,30]
[391686481,1760728248784,-150.0,0.00042487,30]
[391686482,1760728248794,-150.0,0.00042487,30]
[391686483,1760728248803,-151.0,0.000425,120]
[391686484,1760728248813,-153.0,0.000425,120]
[391686485,1760728248823,-150.0,0.00042533,30]
[391686486,1760728248832,-150.0,0.00042533,30]
[391686487,1760728248842,-168.31985426,0.00042533,30]
[391686488,1760728248852,-150.0,0.00042533,30]
[391686489,1760728248861,-828.866355,0.00042543,2]
[391686490,1760728248871,-150.0,0.00042564,30]
[391686491,1760728248880,-168.31985426,0.00042578,30]
[391686492,1760728248891,-150.0,0.0004258,30]
[391686493,1760728248900,-150.0,0.00042614,30]
[391686494,1760728248914,-168.31985426,0.00042623,30]
[391686495,1760728248923,-150.0,0.0004263,30]
[391686496,1760728248933,-266.46833863,0.0004263,30]
[391686497,1760728248942,-150.0,0.00042654,30]
[391686498,1760728248952,-150.0,0.00042669,30]
[391686499,1760728248962,-168.31985426,0.00042669,30]
[391686500,1760728248971,-150.0,0.00042685,30]
[391686501,1760728248980,-150.0,0.00042696,30]
[391686502,1760728248991,-168.31985426,0.00042714,30]
[391686503,1760728249000,-150.0,0.00042737,30]
[391686504,1760728249010,-150.0,0.00042737,30]
[391686505,1760728249019,-150.0,0.00042737,30]
[391686506,1760728249029,-150.0,0.00042737,30]